Workbook

Sheet Guida
B2: FLUSSO DI CASSA PERSONALE
B3: Questa cartella di lavoro contiene fogli di lavoro del flusso di cassa annuale, mensile e giornaliero. Scegli il tipo di flusso di cassa che preferisci o usali tutti per comprendere il flusso di cassa personale.
B5: Flusso di cassa giornaliero | E5: Flusso di cassa mensile | H5: Flusso di cassa annuale
B7: Immettere un importo stimato del flusso di cassa che si registra ogni giorno e rivedere i totali mensili e annuali stimati. Usa questa opzione per avere un'idea di come saranno le abitudini di spesa quotidiane nel corso di un mese o dell'anno. | E7: Immetti il flusso di cassa che si registra mensilmente o stima i mesi restanti per vedere il flusso di cassa previsto per l'anno in relazione a ciascun mese. | H7: Immetti un importo annuale del flusso di cassa in quattro fogli di lavoro: Entrate, spese, spese discrezionali e risparmi. Vedi la ripartizione mensile e come ogni tutto venga messa a confronto e, soprattutto, qual è il bilancio in termini sia annuali che mensili.

Sheet Flusso di cassa giornaliero
B1: FLUSSO DI CASSA PERSONALE
C2: Contante totale disponibile: | D2: =FlussoDiCassaGiornaliero -> 577.84 € | F2: NOTA: Se si desidera aggiungere elementi giornalieri alla tabella, stimare l’importo/valore mensile e inserire tale valore nella colonna del mese corretto.
B4: RIEPILOGO GIORNALIERO
B5: Totali | C5: Giornaliero | D5: Mensile | E5: Annuale
B6: Entrate | C6: =SUMIF(Giornaliero[Tipo],$B6,Giornaliero[Giornaliero]) -> 342.47 € | D6: =SUMIF(Giornaliero[Tipo],$B6,Giornaliero[Mensile]) -> 10,416.80 € | E6: =SUMIF(Giornaliero[Tipo],$B6,Giornaliero[Annuale]) -> 125,001.55 €
B7: Uscita | C7: =SUMIF(Giornaliero[Tipo],$B7,Giornaliero[Giornaliero]) -> 136.06 € | D7: =SUMIF(Giornaliero[Tipo],$B7,Giornaliero[Mensile]) -> 4,138.49 € | E7: =SUMIF(Giornaliero[Tipo],$B7,Giornaliero[Annuale]) -> 49,661.90 €
B8: Spese discrezionali | C8: =SUMIF(Giornaliero[Tipo],$B8,Giornaliero[Giornaliero]) -> 36.29 € | D8: =SUMIF(Giornaliero[Tipo],$B8,Giornaliero[Mensile]) -> 1,103.82 € | E8: =SUMIF(Giornaliero[Tipo],$B8,Giornaliero[Annuale]) -> 13,245.85 €
B9: Risparmi | C9: =SUMIF(Giornaliero[Tipo],$B9,Giornaliero[Giornaliero]) -> 63.02 € | D9: =SUMIF(Giornaliero[Tipo],$B9,Giornaliero[Mensile]) -> 1,916.86 € | E9: =SUMIF(Giornaliero[Tipo],$B9,Giornaliero[Annuale]) -> 23,002.30 €
B11: Tipo | C11: Descrizione | D11: Giornaliero | E11: Mensile | F11: Annuale
B12: Entrate | C12: Stipendio | D12: 246.58 € | E12: =Giornaliero[[#This Row],[Annuale]]/12 -> 7,500.14 € | F12: =Giornaliero[[#This Row],[Giornaliero]]*365 -> 90,001.70 €
B13: Entrate | C13: Commissioni/bonus | D13: 13.70 € | E13: =Giornaliero[[#This Row],[Annuale]]/12 -> 416.71 € | F13: =Giornaliero[[#This Row],[Giornaliero]]*365 -> 5,000.50 €
B14: Entrate | C14: Altro 1 | D14: 82.19 € | E14: =Giornaliero[[#This Row],[Annuale]]/12 -> 2,499.95 € | F14: =Giornaliero[[#This Row],[Giornaliero]]*365 -> 29,999.35 €
B15: Entrate | C15: Altro 2 | D15: 0.00 € | E15: =Giornaliero[[#This Row],[Annuale]]/12 -> 0.00 € | F15: =Giornaliero[[#This Row],[Giornaliero]]*365 -> 0.00 €
B16: Entrate | C16: Altro 3 | D16: 0.00 € | E16: =Giornaliero[[#This Row],[Annuale]]/12 -> 0.00 € | F16: =Giornaliero[[#This Row],[Giornaliero]]*365 -> 0.00 €
B17: Entrate | C17: Altro 4 | D17: 0.00 € | E17: =Giornaliero[[#This Row],[Annuale]]/12 -> 0.00 € | F17: =Giornaliero[[#This Row],[Giornaliero]]*365 -> 0.00 €
B18: Uscita | C18: Federal/SS/Medicare | D18: 41.10 € | E18: =Giornaliero[[#This Row],[Annuale]]/12 -> 1,250.13 € | F18: =Giornaliero[[#This Row],[Giornaliero]]*365 -> 15,001.50 €
B19: Uscita | C19: Imposta sul reddito dello stato | D19: 6.85 € | E19: =Giornaliero[[#This Row],[Annuale]]/12 -> 208.35 € | F19: =Giornaliero[[#This Row],[Giornaliero]]*365 -> 2,500.25 €
B20: Uscita | C20: Tasse/spese per i veicoli | D20: 0.55 € | E20: =Giornaliero[[#This Row],[Annuale]]/12 -> 16.73 € | F20: =Giornaliero[[#This Row],[Giornaliero]]*365 -> 200.75 €
B21: Uscita | C21: Pagamenti per i veicoli | D21: 10.96 € | E21: =Giornaliero[[#This Row],[Annuale]]/12 -> 333.37 € | F21: =Giornaliero[[#This Row],[Giornaliero]]*365 -> 4,000.40 €
B22: Uscita | C22: Mutuo/affitto | D22: 41.10 € | E22: =Giornaliero[[#This Row],[Annuale]]/12 -> 1,250.13 € | F22: =Giornaliero[[#This Row],[Giornaliero]]*365 -> 15,001.50 €
B23: Uscita | C23: Assicurazione | D23: 0.68 € | E23: =Giornaliero[[#This Row],[Annuale]]/12 -> 20.68 € | F23: =Giornaliero[[#This Row],[Giornaliero]]*365 -> 248.20 €
B24: Uscita | C24: Elettricità | D24: 3.29 € | E24: =Giornaliero[[#This Row],[Annuale]]/12 -> 100.07 € | F24: =Giornaliero[[#This Row],[Giornaliero]]*365 -> 1,200.85 €
B25: Uscita | C25: Gas | D25: 1.64 € | E25: =Giornaliero[[#This Row],[Annuale]]/12 -> 49.88 € | F25: =Giornaliero[[#This Row],[Giornaliero]]*365 -> 598.60 €
B26: Uscita | C26: Acqua | D26: 1.64 € | E26: =Giornaliero[[#This Row],[Annuale]]/12 -> 49.88 € | F26: =Giornaliero[[#This Row],[Giornaliero]]*365 -> 598.60 €
B27: Uscita | C27: Fognature | D27: 0.82 € | E27: =Giornaliero[[#This Row],[Annuale]]/12 -> 24.94 € | F27: =Giornaliero[[#This Row],[Giornaliero]]*365 -> 299.30 €
B28: Uscita | C28: Rifiuti | D28: 0.41 € | E28: =Giornaliero[[#This Row],[Annuale]]/12 -> 12.47 € | F28: =Giornaliero[[#This Row],[Giornaliero]]*365 -> 149.65 €
B29: Uscita | C29: Telefono | D29: 1.64 € | E29: =Giornaliero[[#This Row],[Annuale]]/12 -> 49.88 € | F29: =Giornaliero[[#This Row],[Giornaliero]]*365 -> 598.60 €
B30: Uscita | C30: Internet | D30: 1.64 € | E30: =Giornaliero[[#This Row],[Annuale]]/12 -> 49.88 € | F30: =Giornaliero[[#This Row],[Giornaliero]]*365 -> 598.60 €
B31: Uscita | C31: Premi per invalidità | D31: 4.11 € | E31: =Giornaliero[[#This Row],[Annuale]]/12 -> 125.01 € | F31: =Giornaliero[[#This Row],[Giornaliero]]*365 -> 1,500.15 €
B32: Uscita | C32: Prodotti alimentari | D32: 13.70 € | E32: =Giornaliero[[#This Row],[Annuale]]/12 -> 416.71 € | F32: =Giornaliero[[#This Row],[Giornaliero]]*365 -> 5,000.50 €
B33: Uscita | C33: Abbigliamento | D33: 3.29 € | E33: =Giornaliero[[#This Row],[Annuale]]/12 -> 100.07 € | F33: =Giornaliero[[#This Row],[Giornaliero]]*365 -> 1,200.85 €
B34: Uscita | C34: Medico/dentista/radiografie | D34: 1.64 € | E34: =Giornaliero[[#This Row],[Annuale]]/12 -> 49.88 € | F34: =Giornaliero[[#This Row],[Giornaliero]]*365 -> 598.60 €
B35: Uscita | C35: Autobus | D35: 1.00 € | E35: =Giornaliero[[#This Row],[Annuale]]/12 -> 30.42 € | F35: =Giornaliero[[#This Row],[Giornaliero]]*365 -> 365.00 €
B36: Uscita | C36: Altro 2 | D36: 0.00 € | E36: =Giornaliero[[#This Row],[Annuale]]/12 -> 0.00 € | F36: =Giornaliero[[#This Row],[Giornaliero]]*365 -> 0.00 €
B37: Uscita | C37: Altro 3 | D37: 0.00 € | E37: =Giornaliero[[#This Row],[Annuale]]/12 -> 0.00 € | F37: =Giornaliero[[#This Row],[Giornaliero]]*365 -> 0.00 €
B38: Uscita | C38: Altro 4 | D38: 0.00 € | E38: =Giornaliero[[#This Row],[Annuale]]/12 -> 0.00 € | F38: =Giornaliero[[#This Row],[Giornaliero]]*365 -> 0.00 €
B39: Spese discrezionali | C39: Cene fuori | D39: 3.29 € | E39: =Giornaliero[[#This Row],[Annuale]]/12 -> 100.07 € | F39: =Giornaliero[[#This Row],[Giornaliero]]*365 -> 1,200.85 €
B40: Spese discrezionali | C40: Regali | D40: 1.64 € | E40: =Giornaliero[[#This Row],[Annuale]]/12 -> 49.88 € | F40: =Giornaliero[[#This Row],[Giornaliero]]*365 -> 598.60 €
B41: Spese discrezionali | C41: Viaggi | D41: 6.16 € | E41: =Giornaliero[[#This Row],[Annuale]]/12 -> 187.37 € | F41: =Giornaliero[[#This Row],[Giornaliero]]*365 -> 2,248.40 €
B42: Spese discrezionali | C42: Svago | D42: 3.29 € | E42: =Giornaliero[[#This Row],[Annuale]]/12 -> 100.07 € | F42: =Giornaliero[[#This Row],[Giornaliero]]*365 -> 1,200.85 €
B43: Spese discrezionali | C43: Cura della persona | D43: 0.82 € | E43: =Giornaliero[[#This Row],[Annuale]]/12 -> 24.94 € | F43: =Giornaliero[[#This Row],[Giornaliero]]*365 -> 299.30 €
B44: Spese discrezionali | C44: Acquisti | D44: 5.48 € | E44: =Giornaliero[[#This Row],[Annuale]]/12 -> 166.68 € | F44: =Giornaliero[[#This Row],[Giornaliero]]*365 -> 2,000.20 €
B45: Spese discrezionali | C45: Beneficenza | D45: 1.64 € | E45: =Giornaliero[[#This Row],[Annuale]]/12 -> 49.88 € | F45: =Giornaliero[[#This Row],[Giornaliero]]*365 -> 598.60 €
B46: Spese discrezionali | C46: Club/iscrizioni | D46: 0.82 € | E46: =Giornaliero[[#This Row],[Annuale]]/12 -> 24.94 € | F46: =Giornaliero[[#This Row],[Giornaliero]]*365 -> 299.30 €
B47: Spese discrezionali | C47: Migliorie all’abitazione | D47: 13.15 € | E47: =Giornaliero[[#This Row],[Annuale]]/12 -> 399.98 € | F47: =Giornaliero[[#This Row],[Giornaliero]]*365 -> 4,799.75 €
B48: Spese discrezionali | C48: Altro 1 | D48: 0.00 € | E48: =Giornaliero[[#This Row],[Annuale]]/12 -> 0.00 € | F48: =Giornaliero[[#This Row],[Giornaliero]]*365 -> 0.00 €
B49: Spese discrezionali | C49: Altro 2 | D49: 0.00 € | E49: =Giornaliero[[#This Row],[Annuale]]/12 -> 0.00 € | F49: =Giornaliero[[#This Row],[Giornaliero]]*365 -> 0.00 €
B50: Risparmi | C50: Riserve di cassa | D50: 13.70 € | E50: =Giornaliero[[#This Row],[Annuale]]/12 -> 416.71 € | F50: =Giornaliero[[#This Row],[Giornaliero]]*365 -> 5,000.50 €
B51: Risparmi | C51: 401(k)/Etc | D51: 32.88 € | E51: =Giornaliero[[#This Row],[Annuale]]/12 -> 1,000.10 € | F51: =Giornaliero[[#This Row],[Giornaliero]]*365 -> 12,001.20 €
B52: Risparmi | C52: Conto di risparmio | D52: 16.44 € | E52: =Giornaliero[[#This Row],[Annuale]]/12 -> 500.05 € | F52: =Giornaliero[[#This Row],[Giornaliero]]*365 -> 6,000.60 €
B53: Risparmi | C53: Altro 1 | D53: 0.00 € | E53: =Giornaliero[[#This Row],[Annuale]]/12 -> 0.00 € | F53: =Giornaliero[[#This Row],[Giornaliero]]*365 -> 0.00 €
B54: Risparmi | C54: Altro 2 | D54: 0.00 € | E54: =Giornaliero[[#This Row],[Annuale]]/12 -> 0.00 € | F54: =Giornaliero[[#This Row],[Giornaliero]]*365 -> 0.00 €
B55: Totale | D55: =SUMIF(Giornaliero[Tipo],"Entrate",Giornaliero[Giornaliero])-SUMIF(Giornaliero[Tipo],"<>Entrate",Giornaliero[Giornaliero]) -> 107.10 € | E55: =SUMIF(Giornaliero[Tipo],"Entrate",Giornaliero[Mensile])-SUMIF(Giornaliero[Tipo],"<>Entrate",Giornaliero[Mensile]) -> 3,257.63 € | F55: =SUMIF(Giornaliero[Tipo],"Entrate",Giornaliero[Annuale])-SUMIF(Giornaliero[Tipo],"<>Entrate",Giornaliero[Annuale]) -> 39,091.50 €

Sheet Flusso di cassa mensile
B1: FLUSSO DI CASSA PERSONALE
C2: Flusso di cassa mensile totale: | D2: =FlussoDiCassaMensileAllaData -> 18,380.00 € | F2: NOTA: Per gli elementi giornalieri, stimare l’importo/valore mensile e inserire tale valore nella colonna del mese corretto.
B4: Tipo | C4: Descrizione | D4: Gen | E4: Feb | F4: Mar | G4: Apr | H4: Mag | I4: Giu | J4: Lug | K4: Ago | L4: Set | M4: Ott | N4: Nov | O4: Dic | P4: Totale
B5: Entrate | C5: Stipendio | D5: 7,500.00 € | E5: 7,500.00 € | F5: 7,500.00 € | G5: 7,500.00 € | H5: 7,500.00 € | I5: 7,500.00 € | P5: =SUM(Mensile[[#This Row],[Gen]:[Dic]]) -> 45,000.00 €
B6: Entrate | C6: Commissioni/bonus | D6: 400.00 € | E6: 400.00 € | F6: 500.00 € | G6: 200.00 € | H6: 0.00 € | I6: 600.00 € | P6: =SUM(Mensile[[#This Row],[Gen]:[Dic]]) -> 2,100.00 €
B7: Entrate | C7: Altro 1 | D7: 2,500.00 € | E7: 2,500.00 € | F7: 2,500.00 € | G7: 2,500.00 € | H7: 2,500.00 € | I7: 2,500.00 € | P7: =SUM(Mensile[[#This Row],[Gen]:[Dic]]) -> 15,000.00 €
B8: Entrate | C8: Altro 2 | D8: 0.00 € | E8: 0.00 € | F8: 0.00 € | G8: 0.00 € | H8: 0.00 € | I8: 0.00 € | P8: =SUM(Mensile[[#This Row],[Gen]:[Dic]]) -> 0.00 €
B9: Entrate | C9: Altro 3 | D9: 0.00 € | E9: 0.00 € | F9: 0.00 € | G9: 0.00 € | H9: 0.00 € | I9: 0.00 € | P9: =SUM(Mensile[[#This Row],[Gen]:[Dic]]) -> 0.00 €
B10: Entrate | C10: Altro 4 | D10: 0.00 € | E10: 0.00 € | F10: 0.00 € | G10: 0.00 € | H10: 0.00 € | I10: 0.00 € | P10: =SUM(Mensile[[#This Row],[Gen]:[Dic]]) -> 0.00 €
B11: Uscita | C11: Federal/SS/Medicare | D11: 1,250.00 € | E11: 1,250.00 € | F11: 1,250.00 € | G11: 1,250.00 € | H11: 1,250.00 € | I11: 1,250.00 € | P11: =SUM(Mensile[[#This Row],[Gen]:[Dic]]) -> 7,500.00 €
B12: Uscita | C12: Imposta sul reddito dello stato | D12: 208.33 € | E12: 208.33 € | F12: 208.33 € | G12: 208.33 € | H12: 208.33 € | I12: 208.33 € | P12: =SUM(Mensile[[#This Row],[Gen]:[Dic]]) -> 1,250.00 €
B13: Uscita | C13: Tasse/spese per i veicoli | D13: 16.67 € | E13: 16.67 € | F13: 16.67 € | G13: 16.67 € | H13: 16.67 € | I13: 16.67 € | P13: =SUM(Mensile[[#This Row],[Gen]:[Dic]]) -> 100.00 €
B14: Uscita | C14: Pagamenti per i veicoli | D14: 333.33 € | E14: 333.33 € | F14: 333.33 € | G14: 333.33 € | H14: 333.33 € | I14: 333.33 € | P14: =SUM(Mensile[[#This Row],[Gen]:[Dic]]) -> 2,000.00 €
B15: Uscita | C15: Mutuo/affitto | D15: 1,250.00 € | E15: 1,250.00 € | F15: 1,250.00 € | G15: 1,250.00 € | H15: 1,250.00 € | I15: 1,250.00 € | P15: =SUM(Mensile[[#This Row],[Gen]:[Dic]]) -> 7,500.00 €
B16: Uscita | C16: Assicurazione | D16: 25.00 € | E16: 25.00 € | F16: 25.00 € | G16: 25.00 € | H16: 25.00 € | I16: 25.00 € | P16: =SUM(Mensile[[#This Row],[Gen]:[Dic]]) -> 150.00 €
B17: Uscita | C17: Elettricità | D17: 100.00 € | E17: 100.00 € | F17: 100.00 € | G17: 100.00 € | H17: 100.00 € | I17: 100.00 € | P17: =SUM(Mensile[[#This Row],[Gen]:[Dic]]) -> 600.00 €
B18: Uscita | C18: Gas | D18: 50.00 € | E18: 50.00 € | F18: 50.00 € | G18: 50.00 € | H18: 50.00 € | I18: 50.00 € | P18: =SUM(Mensile[[#This Row],[Gen]:[Dic]]) -> 300.00 €
B19: Uscita | C19: Acqua | D19: 50.00 € | E19: 50.00 € | F19: 50.00 € | G19: 50.00 € | H19: 50.00 € | I19: 50.00 € | P19: =SUM(Mensile[[#This Row],[Gen]:[Dic]]) -> 300.00 €
B20: Uscita | C20: Fognature | D20: 25.00 € | E20: 25.00 € | F20: 25.00 € | G20: 25.00 € | H20: 25.00 € | I20: 25.00 € | P20: =SUM(Mensile[[#This Row],[Gen]:[Dic]]) -> 150.00 €
B21: Uscita | C21: Rifiuti | D21: 12.50 € | E21: 12.50 € | F21: 12.50 € | G21: 12.50 € | H21: 12.50 € | I21: 12.50 € | P21: =SUM(Mensile[[#This Row],[Gen]:[Dic]]) -> 75.00 €
B22: Uscita | C22: Telefono | D22: 50.00 € | E22: 50.00 € | F22: 50.00 € | G22: 50.00 € | H22: 50.00 € | I22: 50.00 € | P22: =SUM(Mensile[[#This Row],[Gen]:[Dic]]) -> 300.00 €
B23: Uscita | C23: Internet | D23: 50.00 € | E23: 50.00 € | F23: 50.00 € | G23: 50.00 € | H23: 50.00 € | I23: 50.00 € | P23: =SUM(Mensile[[#This Row],[Gen]:[Dic]]) -> 300.00 €
B24: Uscita | C24: Premi per invalidità | D24: 125.00 € | E24: 125.00 € | F24: 125.00 € | G24: 125.00 € | H24: 125.00 € | I24: 125.00 € | P24: =SUM(Mensile[[#This Row],[Gen]:[Dic]]) -> 750.00 €
B25: Uscita | C25: Prodotti alimentari | D25: 400.00 € | E25: 500.00 € | F25: 450.00 € | G25: 400.00 € | H25: 450.00 € | I25: 425.00 € | P25: =SUM(Mensile[[#This Row],[Gen]:[Dic]]) -> 2,625.00 €
B26: Uscita | C26: Abbigliamento | D26: 50.00 € | E26: 75.00 € | F26: 100.00 € | G26: 75.00 € | H26: 125.00 € | I26: 75.00 € | P26: =SUM(Mensile[[#This Row],[Gen]:[Dic]]) -> 500.00 €
B27: Uscita | C27: Medico/dentista/radiografie | D27: 50.00 € | E27: 10.00 € | F27: 25.00 € | G27: 25.00 € | H27: 20.00 € | I27: 70.00 € | P27: =SUM(Mensile[[#This Row],[Gen]:[Dic]]) -> 200.00 €
B28: Uscita | C28: Autobus | D28: 30.00 € | E28: 30.00 € | F28: 30.00 € | G28: 20.00 € | H28: 30.00 € | I28: 30.00 € | P28: =SUM(Mensile[[#This Row],[Gen]:[Dic]]) -> 170.00 €
B29: Uscita | C29: Altro 2 | D29: 0.00 € | E29: 0.00 € | F29: 0.00 € | G29: 0.00 € | H29: 0.00 € | I29: 0.00 € | P29: =SUM(Mensile[[#This Row],[Gen]:[Dic]]) -> 0.00 €
B30: Uscita | C30: Altro 3 | D30: 0.00 € | E30: 0.00 € | F30: 0.00 € | G30: 0.00 € | H30: 0.00 € | I30: 0.00 € | P30: =SUM(Mensile[[#This Row],[Gen]:[Dic]]) -> 0.00 €
B31: Uscita | C31: Altro 4 | D31: 0.00 € | E31: 0.00 € | F31: 0.00 € | G31: 0.00 € | H31: 0.00 € | I31: 0.00 € | P31: =SUM(Mensile[[#This Row],[Gen]:[Dic]]) -> 0.00 €
B32: Spese discrezionali | C32: Cene fuori | D32: 50.00 € | E32: 150.00 € | F32: 100.00 € | G32: 50.00 € | H32: 150.00 € | I32: 100.00 € | P32: =SUM(Mensile[[#This Row],[Gen]:[Dic]]) -> 600.00 €
B33: Spese discrezionali | C33: Regali | D33: 25.00 € | E33: 75.00 € | F33: 50.00 € | G33: 25.00 € | H33: 75.00 € | I33: 50.00 € | P33: =SUM(Mensile[[#This Row],[Gen]:[Dic]]) -> 300.00 €
B34: Spese discrezionali | C34: Viaggi | D34: 0.00 € | E34: 0.00 € | F34: 1,000.00 € | G34: 0.00 € | H34: 0.00 € | I34: 1,000.00 € | P34: =SUM(Mensile[[#This Row],[Gen]:[Dic]]) -> 2,000.00 €
B35: Spese discrezionali | C35: Svago | D35: 50.00 € | E35: 150.00 € | F35: 100.00 € | G35: 50.00 € | H35: 150.00 € | I35: 100.00 € | P35: =SUM(Mensile[[#This Row],[Gen]:[Dic]]) -> 600.00 €
B36: Spese discrezionali | C36: Cura della persona | D36: 15.00 € | E36: 25.00 € | F36: 35.00 € | G36: 15.00 € | H36: 25.00 € | I36: 35.00 € | P36: =SUM(Mensile[[#This Row],[Gen]:[Dic]]) -> 150.00 €
B37: Spese discrezionali | C37: Acquisti | D37: 100.00 € | E37: 200.00 € | F37: 150.00 € | G37: 175.00 € | H37: 150.00 € | I37: 175.00 € | P37: =SUM(Mensile[[#This Row],[Gen]:[Dic]]) -> 950.00 €
B38: Spese discrezionali | C38: Beneficenza | D38: 50.00 € | E38: 50.00 € | F38: 50.00 € | G38: 50.00 € | H38: 50.00 € | I38: 50.00 € | P38: =SUM(Mensile[[#This Row],[Gen]:[Dic]]) -> 300.00 €
B39: Spese discrezionali | C39: Club/iscrizioni | D39: 25.00 € | E39: 25.00 € | F39: 25.00 € | G39: 25.00 € | H39: 25.00 € | I39: 25.00 € | P39: =SUM(Mensile[[#This Row],[Gen]:[Dic]]) -> 150.00 €
B40: Spese discrezionali | C40: Migliorie all’abitazione | D40: 400.00 € | E40: 400.00 € | F40: 400.00 € | G40: 400.00 € | H40: 400.00 € | I40: 400.00 € | P40: =SUM(Mensile[[#This Row],[Gen]:[Dic]]) -> 2,400.00 €
B41: Spese discrezionali | C41: Altro 1 | D41: 0.00 € | E41: 0.00 € | F41: 0.00 € | G41: 0.00 € | H41: 0.00 € | I41: 0.00 € | P41: =SUM(Mensile[[#This Row],[Gen]:[Dic]]) -> 0.00 €
B42: Spese discrezionali | C42: Altro 2 | D42: 0.00 € | E42: 0.00 € | F42: 0.00 € | G42: 0.00 € | H42: 0.00 € | I42: 0.00 € | P42: =SUM(Mensile[[#This Row],[Gen]:[Dic]]) -> 0.00 €
B43: Risparmi | C43: Riserve di cassa | D43: 416.67 € | E43: 416.67 € | F43: 416.67 € | G43: 416.67 € | H43: 416.67 € | I43: 416.67 € | P43: =SUM(Mensile[[#This Row],[Gen]:[Dic]]) -> 2,500.00 €
B44: Risparmi | C44: 401(k)/Etc | D44: 1,000.00 € | E44: 1,000.00 € | F44: 1,000.00 € | G44: 1,000.00 € | H44: 1,000.00 € | I44: 1,000.00 € | P44: =SUM(Mensile[[#This Row],[Gen]:[Dic]]) -> 6,000.00 €
B45: Risparmi | C45: Conto di risparmio | D45: 500.00 € | E45: 500.00 € | F45: 500.00 € | G45: 500.00 € | H45: 500.00 € | I45: 500.00 € | P45: =SUM(Mensile[[#This Row],[Gen]:[Dic]]) -> 3,000.00 €
B46: Risparmi | C46: Altro 1 | D46: 0.00 € | E46: 0.00 € | F46: 0.00 € | G46: 0.00 € | H46: 0.00 € | I46: 0.00 € | P46: =SUM(Mensile[[#This Row],[Gen]:[Dic]]) -> 0.00 €
B47: Risparmi | C47: Altro 2 | D47: 0.00 € | E47: 0.00 € | F47: 0.00 € | G47: 0.00 € | H47: 0.00 € | I47: 0.00 € | P47: =SUM(Mensile[[#This Row],[Gen]:[Dic]]) -> 0.00 €
B48: Totale | D48: =SUMIF(Mensile[Tipo],"Entrate",Mensile[Gen])-SUMIF(Mensile[Tipo],"<>Entrate",Mensile[Gen]) -> 3,692.50 € | E48: =SUMIF(Mensile[Tipo],"Entrate",Mensile[Feb])-SUMIF(Mensile[Tipo],"<>Entrate",Mensile[Feb]) -> 3,247.50 € | F48: =SUMIF(Mensile[Tipo],"Entrate",Mensile[Mar])-SUMIF(Mensile[Tipo],"<>Entrate",Mensile[Mar]) -> 2,522.50 € | G48: =SUMIF(Mensile[Tipo],"Entrate",Mensile[Apr])-SUMIF(Mensile[Tipo],"<>Entrate",Mensile[Apr]) -> 3,427.50 € | H48: =SUMIF(Mensile[Tipo],"Entrate",Mensile[Mag])-SUMIF(Mensile[Tipo],"<>Entrate",Mensile[Mag]) -> 2,887.50 € | I48: =SUMIF(Mensile[Tipo],"Entrate",Mensile[Giu])-SUMIF(Mensile[Tipo],"<>Entrate",Mensile[Giu]) -> 2,602.50 € | J48: =SUMIF(Mensile[Tipo],"Entrate",Mensile[Lug])-SUMIF(Mensile[Tipo],"<>Entrate",Mensile[Lug]) -> 0.00 € | K48: =SUMIF(Mensile[Tipo],"Entrate",Mensile[Ago])-SUMIF(Mensile[Tipo],"<>Entrate",Mensile[Ago]) -> 0.00 € | L48: =SUMIF(Mensile[Tipo],"Entrate",Mensile[Set])-SUMIF(Mensile[Tipo],"<>Entrate",Mensile[Set]) -> 0.00 € | M48: =SUMIF(Mensile[Tipo],"Entrate",Mensile[Ott])-SUMIF(Mensile[Tipo],"<>Entrate",Mensile[Ott]) -> 0.00 € | N48: =SUMIF(Mensile[Tipo],"Entrate",Mensile[Nov])-SUMIF(Mensile[Tipo],"<>Entrate",Mensile[Nov]) -> 0.00 € | O48: =SUMIF(Mensile[Tipo],"Entrate",Mensile[Dic])-SUMIF(Mensile[Tipo],"<>Entrate",Mensile[Dic]) -> 0.00 € | P48: =SUMIF(Mensile[Tipo],"Entrate",Mensile[Totale])-SUMIF(Mensile[Tipo],"<>Entrate",Mensile[Totale]) -> 18,380.00 €

Sheet Flusso di cassa annuale
B1: FLUSSO DI CASSA PERSONALE
C2: Flusso di cassa totale fino alla data corrente: | D2: =AnnualCashFlowToDate -> 42,250.00 € | G2: Si tratta di una stima annuale. Usa questo foglio di lavoro se vuoi visualizzare gli importi annuali con valori stimati mensili. Usa i fogli di lavoro Entrate, Spese, Spese discrezionali e Risparmi per immettere le voci.
B4: RIEPILOGO DELLE ENTRATE | F4: RIEPILOGO DELLE SPESE | J4: RIEPILOGO DISCREZIONALE | N4: RIEPILOGO DEI RISPARMI
B5: Totale annuale: | C5: =Entrate!C11 -> 125,000.00 € | F5: Totale annuale: | G5: =Uscita[[#Totals],[Annuale ]] -> 46,500.00 € | J5: Totale annuale: | K5: =Spese_discrezionali[[#Totals],[Annuale ]] -> 13,250.00 € | N5: Totale annuale: | O5: =Risparmi[[#Totals],[Annuale ]] -> 23,000.00 €
B8: Totale mensile: | C8: =Entrate!D11 -> 10,416.67 € | F8: Totale mensile: | G8: =Uscita[[#Totals],[Mensile ]] -> 3,875.00 € | J8: Totale mensile: | K8: =Spese_discrezionali[[#Totals],[Mensile ]] -> 1,104.17 € | N8: Totale mensile: | O8: =Risparmi[[#Totals],[Mensile ]] -> 1,916.67 €
R10: Row Labels | S10: Entrate annuali | U10: Row Labels | V10: Sum of Annuale | X10: Row Labels | Y10: Sum of Annuale | AA10: Row Labels | AB10: Sum of Annuale
R11: Altro 3 | S11: 0 € | U11: Altro 2 | V11: 0 € | X11: Altro 2 | Y11: 0 € | AA11: Altro 2 | AB11: 0 €
R12: Altro 4 | S12: 0 € | U12: Altro 1 | V12: 0 € | X12: Altro 1 | Y12: 0 € | AA12: Altro 1 | AB12: 0 €
R13: Altro 2 | S13: 0 € | U13: Rifiuti | V13: 150 € | X13: Club/iscrizioni | Y13: 300 € | AA13: Riserve di cassa | AB13: 5,000 €
R14: Commissioni/bonus | S14: 5,000 € | U14: Tasse/spese per i veicoli | V14: 200 € | X14: Cura della persona | Y14: 300 € | AA14: Risparmi/investimenti | AB14: 6,000 €
R15: Altro 1 | S15: 30,000 € | U15: Assicurazione | V15: 250 € | X15: Beneficenza | Y15: 600 € | AA15: 401(k)/Etc | AB15: 12,000 €
R16: Stipendio | S16: 90,000 € | U16: Gas | V16: 600 € | X16: Regali | Y16: 600 € | AA16: Grand Total | AB16: 23,000 €
R17: Grand Total | S17: 125,000 € | U17: Medico/dentista/radiografie | V17: 600 € | X17: Cene fuori | Y17: 1,200 €
U18: Telefono | V18: 600 € | X18: Svago | Y18: 1,200 €
U19: Acqua/fognature | V19: 600 € | X19: Acquisti | Y19: 2,000 €
U20: Internet | V20: 600 € | X20: Viaggi | Y20: 2,250 €
U21: Abbigliamento | V21: 1,200 € | X21: Migliorie all’abitazione | Y21: 4,800 €
U22: Elettricità | V22: 1,200 € | X22: Grand Total | Y22: 13,250 €
U23: Premi per invalidità | V23: 1,500 €
U24: Imposta sul reddito dello stato | V24: 2,500 €
U25: Pagamenti per i veicoli | V25: 4,000 €
U26: Prodotti alimentari | V26: 5,000 €
U27: Federal/SS/Medicare | V27: 12,500 €
U28: Mutuo/affitto | V28: 15,000 €
U29: Grand Total | V29: 46,500 €

Sheet Entrate
B1: FLUSSO DI CASSA PERSONALE
C2: Flusso di cassa totale fino alla data corrente: | D2: =AnnualCashFlowToDate -> 42,250.00 € | F2: Si tratta di una stima annuale. Usa questo foglio di lavoro se vuoi visualizzare gli importi annuali con valori stimati mensili. Se desideri aggiungere voci giornaliere alle tabelle, stima il loro importo/valore annuale e il valore posto nella colonna Annuale.
B4: Entrate | C4: Annuale | D4: Mensile
B5: Stipendio | C5: 90,000.00 € | D5: =Entrate[[#This Row],[Annuale ]]/12 -> 7,500.00 €
B6: Commissioni/bonus | C6: 5,000.00 € | D6: =Entrate[[#This Row],[Annuale ]]/12 -> 416.67 €
B7: Altro 1 | C7: 30,000.00 € | D7: =Entrate[[#This Row],[Annuale ]]/12 -> 2,500.00 €
B8: Altro 2 | C8: 0.00 € | D8: =Entrate[[#This Row],[Annuale ]]/12 -> 0.00 €
B9: Altro 3 | C9: 0.00 € | D9: =Entrate[[#This Row],[Annuale ]]/12 -> 0.00 €
B10: Altro 4 | C10: 0.00 € | D10: =Entrate[[#This Row],[Annuale ]]/12 -> 0.00 €
B11: Totale | C11: =SUBTOTAL(109,Entrate[[Annuale ]]) -> 125,000.00 € | D11: =SUBTOTAL(109,Entrate[[Mensile ]]) -> 10,416.67 €

Sheet Uscita
B1: FLUSSO DI CASSA PERSONALE
C2: Flusso di cassa totale fino alla data corrente: | D2: =AnnualCashFlowToDate -> 42,250.00 € | F2: Si tratta di una stima annuale. Utilizzare questo foglio di lavoro se si desidera visualizzare gli importi annuali con valori stimati mensili Se desideri aggiungere voci giornaliere alle tabelle, stima il loro importo/valore annuale e il valore posto nella colonna Annuale.
B4: Uscita | C4: Annuale | D4: Mensile
B5: Federal/SS/Medicare | C5: 12,500.00 € | D5: =Uscita[[#This Row],[Annuale ]]/12 -> 1,041.67 €
B6: Imposta sul reddito dello stato | C6: 2,500.00 € | D6: =Uscita[[#This Row],[Annuale ]]/12 -> 208.33 €
B7: Tasse/spese per i veicoli | C7: 200.00 € | D7: =Uscita[[#This Row],[Annuale ]]/12 -> 16.67 €
B8: Pagamenti per i veicoli | C8: 4,000.00 € | D8: =Uscita[[#This Row],[Annuale ]]/12 -> 333.33 €
B9: Mutuo/affitto | C9: 15,000.00 € | D9: =Uscita[[#This Row],[Annuale ]]/12 -> 1,250.00 €
B10: Assicurazione | C10: 250.00 € | D10: =Uscita[[#This Row],[Annuale ]]/12 -> 20.83 €
B11: Elettricità | C11: 1,200.00 € | D11: =Uscita[[#This Row],[Annuale ]]/12 -> 100.00 €
B12: Gas | C12: 600.00 € | D12: =Uscita[[#This Row],[Annuale ]]/12 -> 50.00 €
B13: Acqua/fognature | C13: 600.00 € | D13: =Uscita[[#This Row],[Annuale ]]/12 -> 50.00 €
B14: Rifiuti | C14: 150.00 € | D14: =Uscita[[#This Row],[Annuale ]]/12 -> 12.50 €
B15: Telefono | C15: 600.00 € | D15: =Uscita[[#This Row],[Annuale ]]/12 -> 50.00 €
B16: Internet | C16: 600.00 € | D16: =Uscita[[#This Row],[Annuale ]]/12 -> 50.00 €
B17: Premi per invalidità | C17: 1,500.00 € | D17: =Uscita[[#This Row],[Annuale ]]/12 -> 125.00 €
B18: Prodotti alimentari | C18: 5,000.00 € | D18: =Uscita[[#This Row],[Annuale ]]/12 -> 416.67 €
B19: Abbigliamento | C19: 1,200.00 € | D19: =Uscita[[#This Row],[Annuale ]]/12 -> 100.00 €
B20: Medico/dentista/radiografie | C20: 600.00 € | D20: =Uscita[[#This Row],[Annuale ]]/12 -> 50.00 €
B21: Altro 1 | C21: 0.00 € | D21: =Uscita[[#This Row],[Annuale ]]/12 -> 0.00 €
B22: Altro 2 | C22: 0.00 € | D22: =Uscita[[#This Row],[Annuale ]]/12 -> 0.00 €
B23: Totale | C23: =SUBTOTAL(109,Uscita[[Annuale ]]) -> 46,500.00 € | D23: =SUBTOTAL(109,Uscita[[Mensile ]]) -> 3,875.00 €

Sheet Spese discrezionali
B1: FLUSSO DI CASSA PERSONALE
C2: Flusso di cassa totale fino alla data corrente: | D2: =AnnualCashFlowToDate -> 42,250.00 € | F2: Si tratta di una stima annuale. Utilizzare questo foglio di lavoro se si desidera visualizzare gli importi annuali con valori stimati mensili Se desideri aggiungere voci giornaliere alle tabelle, stima il loro importo/valore annuale e il valore posto nella colonna Annuale.
B4: Spese discrezionali | C4: Annuale | D4: Mensile
B5: Cene fuori | C5: 1,200.00 € | D5: =Spese_discrezionali[[#This Row],[Annuale ]]/12 -> 100.00 €
B6: Regali | C6: 600.00 € | D6: =Spese_discrezionali[[#This Row],[Annuale ]]/12 -> 50.00 €
B7: Viaggi | C7: 2,250.00 € | D7: =Spese_discrezionali[[#This Row],[Annuale ]]/12 -> 187.50 €
B8: Svago | C8: 1,200.00 € | D8: =Spese_discrezionali[[#This Row],[Annuale ]]/12 -> 100.00 €
B9: Cura della persona | C9: 300.00 € | D9: =Spese_discrezionali[[#This Row],[Annuale ]]/12 -> 25.00 €
B10: Acquisti | C10: 2,000.00 € | D10: =Spese_discrezionali[[#This Row],[Annuale ]]/12 -> 166.67 €
B11: Beneficenza | C11: 600.00 € | D11: =Spese_discrezionali[[#This Row],[Annuale ]]/12 -> 50.00 €
B12: Club/iscrizioni | C12: 300.00 € | D12: =Spese_discrezionali[[#This Row],[Annuale ]]/12 -> 25.00 €
B13: Migliorie all’abitazione | C13: 4,800.00 € | D13: =Spese_discrezionali[[#This Row],[Annuale ]]/12 -> 400.00 €
B14: Altro 1 | C14: 0.00 € | D14: =Spese_discrezionali[[#This Row],[Annuale ]]/12 -> 0.00 €
B15: Altro 2 | C15: 0.00 € | D15: =Spese_discrezionali[[#This Row],[Annuale ]]/12 -> 0.00 €
B16: Totale | C16: =SUBTOTAL(109,Spese_discrezionali[[Annuale ]]) -> 13,250.00 € | D16: =SUBTOTAL(109,Spese_discrezionali[[Mensile ]]) -> 1,104.17 €

Sheet Risparmi
B1: FLUSSO DI CASSA PERSONALE
C2: Flusso di cassa totale fino alla data corrente: | D2: =AnnualCashFlowToDate -> 42,250.00 € | F2: Si tratta di una stima annuale. Utilizzare questo foglio di lavoro se si desidera visualizzare gli importi annuali con valori stimati mensili Se desideri aggiungere voci giornaliere alle tabelle, stima il loro importo/valore annuale e il valore posto nella colonna Annuale.
B4: Risparmi | C4: Annuale | D4: Mensile
B5: Riserve di cassa | C5: 5,000.00 € | D5: =Risparmi[[#This Row],[Annuale ]]/12 -> 416.67 €
B6: 401(k)/Etc | C6: 12,000.00 € | D6: =Risparmi[[#This Row],[Annuale ]]/12 -> 1,000.00 €
B7: Risparmi/investimenti | C7: 6,000.00 € | D7: =Risparmi[[#This Row],[Annuale ]]/12 -> 500.00 €
B8: Altro 1 | C8: 0.00 € | D8: =Risparmi[[#This Row],[Annuale ]]/12 -> 0.00 €
B9: Altro 2 | C9: 0.00 € | D9: =Risparmi[[#This Row],[Annuale ]]/12 -> 0.00 €
B10: Totale | C10: =SUBTOTAL(109,Risparmi[[Annuale ]]) -> 23,000.00 € | D10: =SUBTOTAL(109,Risparmi[[Mensile ]]) -> 1,916.67 €
